[Event "7th Salamanca Festival 2024"]
[Site "Salamanca"]
[Date "2024.05.25"]
[Round "6.3"]
[White "Salimova, Nurgyul"]
[Black "Muzychuk, Mariya"]
[Result "1/2-1/2"]
[ECO "D02"]
[WhiteElo "2436"]
[BlackElo "2510"]
[Annotator "TA"]
[PlyCount "146"]
[EventDate "2024.05.18"]
[EventType "tourn"]
[EventCountry "ESP"]
[SourceTitle "playchess.com"]
[Source "ChessBase"]
[SourceQuality "1"]
[TimeControl "2400+5"]

{[%evp 57,146,425,434,421,452,443,458,464,470,454,533,531,557,555,581,573,557,532,506,391,391,312,318,278,266,241,283,233,248,253,260,230,214,0,276,274,255,249,276,238,299,218,233,233,238,227,372,300,248,289,270,183,181,175,216,208,323,309,320,315,316,164,379,371,451,444,503,485,462,289,281,80,113,0,206,8,8,8,8,8,8,0,0,0,0,0,0,0,0,0,0]} 1. d4 {[%emt 0:00:05]} d5 {[%emt 0:00:02]} 2. Nf3 {[%emt 0:00:10]} Nf6 {[%emt 0:00:02]} 3. Bf4 {[%emt 0:00:02]} Bf5 {[%emt 0:00:08]} 4. Nh4 {[%emt 0:00:04]} Be4 {[%emt 0:02:37]} 5. f3 {[%emt 0:00:44]} Bg6 {[%emt 0:00:02]} 6. Nc3 {[%emt 0:00:24]} e6 {[%emt 0:00:18]} 7. Qd2 {[%emt 0:00:26]} Nh5 {[%emt 0:04:12]} 8. Bg5 {[%emt 0:06:04]} Be7 {[%emt 0:00:13]} 9. Bxe7 {[%emt 0:00:10]} Qxe7 {[%emt 0:00:01]} 10. g3 {[%emt 0:00:34]} c5 {[%emt 0:01:02]} 11. dxc5 {[%emt 0:04:20]} Qxc5 {[%emt 0:01:27]} 12. e4 {[%emt 0:00:53]} dxe4 {[%emt 0:05:40]} 13. O-O-O {[%emt 0:01:18]} O-O {[%emt 0:00:14]} 14. Nxg6 {[%emt 0:00:07]} hxg6 {[%emt 0:00:14]} 15. Nxe4 {[%emt 0:00:07]} Qc7 {[%emt 0:00:03]} 16. Qd6 {[%emt 0:03:15]} Qa5 {[%emt 0:00:50]} 17. Qc5 {[%emt 0:10:53]} Qxa2 {[%emt 0:07:05]} 18. Nc3 {[%emt 0:01:42]} Qa1+ {[%emt 0:00:03]} 19. Kd2 {[%emt 0:00:17]} Rd8+ {[%emt 0:00:02]} 20. Bd3 {[%emt 0:00:08]} Qa6 {[%emt 0:00:14]} 21. Ke2 {[%emt 0:02:00]} Qb6 {[%emt 0:00:37]} 22. Bxg6 {[%emt 0:02:15]} Nc6 {[%emt 0:08:04]} 23. Qxb6 {[%emt 0:00:38]} axb6 {[%emt 0:00:29]} 24. Bxh5 {[%emt 0:00:13]} Nd4+ {[%emt 0:00:10]} 25. Kf2 {[%emt 0:00:06]} Nxc2 {[%emt 0:00:09]} 26. f4 {[%emt 0:00:26]} Nb4 {[%emt 0:00:19]} 27. Be2 {[%emt 0:00:18]} Kf8 {[%emt 0:00:20]} 28. h4 {[%emt 0:00:15]} Ke7 {[%emt 0:00:01]} 29. h5 {[%emt 0:00:08]} Nc6 {[%emt 0:00:57]} 30. Bf3 {[%emt 0:00:23]} ({Don't play} 30. Rxd8 Nxd8 31. g4 Nc6) 30... Na5 {[%emt 0:00:18]} 31. Rxd8 {[%emt 0:00:45]} Rxd8 {[%emt 0:00:01]} 32. Rd1 {[%emt 0:00:02]} Rc8 {[%emt 0:00:07]} 33. Rd4 {[%emt 0:00:59]} Rc7 {[%emt 0:02:02]} 34. Rb4 {[%emt 0:00:38]} Nc4 {[%emt 0:00:02]} 35. Na4 {[%emt 0:00:12]} Nd6 {[%emt 0:01:06]} 36. Rxb6 {[%emt 0:01:21]} Rc2+ {[%emt 0:00:01]} 37. Ke1 {[%emt 0:00:09]} Rc1+ {[%emt 0:00:51]} 38. Kd2 {[%emt 0:00:30]} Rg1 {[%emt 0:00:37]} 39. b3 {[%emt 0:00:06]} (39. Bxb7 Nc4+ 40. Ke2 Nxb6 41. Nxb6 Rxg3 $16) 39... Rxg3 {[%emt 0:00:04]} 40. Bxb7 {[%emt 0:00:04]} Rh3 {[%emt 0:00:20]} 41. Nc3 {[%emt 0:00:10]} Rxh5 {[%emt 0:00:09]} 42. Bf3 {[%emt 0:00:04]} Rh4 {[%emt 0:00:24]} 43. Ne2 $1 {[%emt 0:00:08]} Rh3 {[%emt 0:00:10]} 44. Bg2 {[%emt 0:00:04]} Rh2 {[%emt 0:00:03]} 45. Bf3 $2 {[%emt 0:00:01]} (45. Bc6 $18) 45... Rf2 $2 {[%emt 0:00:16][%mdl 8192]} (45... Rh3 $1 $11) 46. Ke3 $18 {[%emt 0:00:05]} Rf1 {[%emt 0:00:02]} 47. Ng3 {[%emt 0:00:06]} Rb1 {[%emt 0:00:19]} 48. Be2 {[%emt 0:00:02]} g6 {[%emt 0:00:14]} 49. Kf2 {[%emt 0:00:05]} Rb2 {[%emt 0:00:05]} 50. Rb8 {[%emt 0:00:09]} Kf6 {[%emt 0:00:18]} 51. Ke3 {[%emt 0:00:06]} g5 {[%emt 0:00:22]} (51... Ke7 $142 52. Bd3 Kd7) 52. fxg5+ {[%emt 0:00:02]} Kxg5 {[%emt 0:00:01]} 53. Bd3 {[%emt 0:00:09]} f5 {[%emt 0:00:04]} 54. Ne2 {[%emt 0:00:05]} e5 {[%emt 0:00:03]} 55. Rb6 $1 {[%emt 0:00:05]} f4+ {[%emt 0:00:46]} 56. Kf2 {[%emt 0:00:04]} Nf5 {[%emt 0:00:09]} (56... Nc8 {was necessary.} 57. Rb5 Kf6) 57. Kf3 $1 $18 {[%emt 0:00:04]} Nh4+ {[%emt 0:00:04]} 58. Ke4 {[%emt 0:00:03]} f3 {[%emt 0:00:01]} 59. Ng3 {[%emt 0:00:03]} (59. Nc3 $142) 59... f2 $2 {[%emt 0:00:07]} (59... Rg2 {was called for.}) 60. Nf1 {[%emt 0:00:06]} (60. Kxe5 Nf3+ 61. Ke4 Rxb3 $16) 60... Kg4 {[%emt 0:00:07]} 61. Kxe5 {[%emt 0:00:10]} Nf3+ {[%emt 0:00:04]} 62. Kd5 {[%emt 0:00:02]} Nd2 {[%emt 0:00:04]} 63. Rg6+ {[%emt 0:00:07]} Kh4 {[%emt 0:00:08]} 64. Rh6+ $2 {[%emt 0:00:04]} ({Weaker is} 64. Nxd2 Rxd2 65. Ke4 Rxd3 $11) (64. Ke5 $1 $18 {[%cal Re5f4] Intending Kf4 and mate.} Nxf1 65. Kf4 (65. Bxf1 Rb1 $14)) 64... Kg5 {[%emt 0:00:01] [#]} 65. Rg6+ {[%emt 0:00:01]} (65. Rh3 $1 $16) 65... Kh4 $18 {[%emt 0:00:03] [#]} 66. Rf6 $2 {[%emt 0:00:08]} ({Not} 66. Nxd2 Rxd2 67. Ke4 Rxd3 $11) (66. Ke5 $1 $18 {[%cal Re5f4] White wants to mate with Kf4.} Nxf1 67. Kf4 (67. Bxf1 Rb1 $14)) 66... Rxb3 $11 {[%emt 0:00:06]} 67. Be2 {[%emt 0:00:09]} Nxf1 {[%emt 0:00:05]} 68. Bxf1 {[%emt 0:00:02]} Kg3 {[%emt 0:00:03]} 69. Rg6+ {[%emt 0:00:06]} Kf3 {[%emt 0:00:04]} 70. Rf6+ {[%emt 0:00:02]} Ke3 {[%emt 0:00:03]} 71. Re6+ {[%emt 0:00:06]} Kf3 {[%emt 0:00:00]} 72. Rf6+ {[%emt 0:00:08]} Ke3 {[%emt 0:00:01]} 73. Re6+ {[%emt 0:00:02]} Kf3 {[%emt 0:00:00]} 1/2-1/2

[Event "7th Salamanca Festival 2024"]
[Site "Salamanca"]
[Date "2024.05.25"]
[Round "6.4"]
[White "Ponomariov, Ruslan"]
[Black "Paehtz, Elisabeth"]
[Result "1-0"]
[ECO "D37"]
[WhiteElo "2646"]
[BlackElo "2457"]
[Annotator "TA"]
[PlyCount "69"]
[EventDate "2024.05.18"]
[EventType "tourn"]
[EventCountry "ESP"]
[SourceTitle "playchess.com"]
[Source "ChessBase"]
[SourceQuality "1"]
[TimeControl "2400+5"]

{[%evp 9,69,15,49,45,52,22,24,3,45,48,47,46,75,76,110,103,138,97,100,100,94,85,109,100,122,116,107,101,95,68,68,69,152,158,153,141,179,179,195,195,270,284,292,307,394,356,381,391,664,668,892,890,895,904,1040,1013,1023,1027,1094,1087,1053,1022]} 1. d4 {[%emt 0:00:02]} d5 {[%emt 0:00:05]} 2. c4 {[%emt 0:00:05]} e6 {[%emt 0:00:01]} 3. Nc3 {[%emt 0:00:05]} h6 {[%emt 0:00:03]} 4. Nf3 {[%emt 0:00:04]} Nf6 {[%emt 0:00:01]} 5. a3 {[%emt 0:00:08]} a6 {[%emt 0:00:24]} 6. c5 {[%emt 0:02:20]} Nc6 {[%emt 0:00:20]} 7. b4 {[%emt 0:00:30]} g5 {[%emt 0:00:48]} 8. Bb2 {[%emt 0:01:58] White has an edge.} Bg7 {[%emt 0:00:07]} 9. e3 {[%emt 0:00:09]} Bd7 {[%emt 0:01:06]} 10. Bd3 {[%emt 0:00:11]} Qe7 {[%emt 0:00:03]} 11. Qc2 {[%emt 0:04:02]} Rc8 {[%emt 0:02:03]} 12. Ne2 {[%emt 0:00:37]} Kf8 {[%emt 0:01:35]} 13. Ng3 {[%emt 0:01:48]} g4 {[%emt 0:00:47]} 14. Ne5 {[%emt 0:00:35]} h5 {[%emt 0:00:01][%cal Bh6h5,Bh5h4][%mdl 32]} 15. h3 {[%emt 0:01:29] White is much more active.} h4 {[%emt 0:00:10]} 16. Ne2 {[%emt 0:00:02][%cal Bg3e2,Be2g1,Bg1f3][%mdl 32]} gxh3 {[%emt 0:00:07]} 17. Nxd7+ {[%emt 0:02:26]} ({But not} 17. Rxh3 $6 Nxe5 18. dxe5 Ng4 $11) 17... Nxd7 {[%emt 0:00:38]} 18. Rxh3 {[%emt 0:00:02]} Qg5 {[%emt 0:00:19]} 19. Rh2 {[%emt 0:02:04]} Nf6 {[%emt 0:00:13]} 20. Ng1 {[%emt 0:00:17]} Ng4 {[%emt 0:00:49] White now steadily converts the win.} (20... Qg4 $1 $14) 21. Nf3 $16 {[%emt 0:00:04]} Qf6 {[%emt 0:01:10]} 22. Rh3 {[%emt 0:00:06]} Re8 {[%emt 0:01:58]} 23. O-O-O {[%emt 0:00:18]} Rh6 {[%emt 0:04:01]} 24. Kb1 {[%emt 0:01:08]} Ke7 {[%emt 0:00:03]} (24... a5 $142) 25. e4 $18 {[%emt 0:02:42]} dxe4 {[%emt 0:00:01]} 26. Bxe4 {[%emt 0:00:01]} Rd8 {[%emt 0:00:08]} 27. g3 {[%emt 0:01:12]} Kf8 {[%emt 0:01:44]} 28. gxh4 {[%emt 0:00:30] Strongly threatening Rg3.} Rh5 $2 {[%emt 0:01:09]} (28... Qe7 29. Bxc6 bxc6) 29. Rg3 {[%emt 0:01:17] White is clearly winning.} Nh6 {[%emt 0:00:02] [#]} 30. Rxg7 {[%emt 0:02:32][%mdl 512]} Qxg7 {[%emt 0:00:08] [#]} 31. d5 $1 {[%emt 0:00:01][%mdl 512]} Qg4 {[%emt 0:00:29]} (31... Ne5 32. Nxe5) 32. Rg1 {[%emt 0:00:07]} Qxg1+ {[%emt 0:01:13]} 33. Nxg1 {[%emt 0:00:02]} exd5 {[%emt 0:00:02]} 34. Bf3 {[%emt 0:00:48]} Rf5 {[%emt 0:00:31]} 35. Bc1 {[%emt 0:00:09] Weighted Error Value: White=0.08 (flawless) /Black=0.36.  Mistake:       	---       	Black=3      Inaccurate:     	White=1     	Black=5      OK:         	White=12    	Black=7      Best:        	White=1     	---} 1-0

[Event "7th Salamanca Festival 2024"]
[Site "Salamanca"]
[Date "2024.05.25"]
[Round "7.1"]
[White "Paehtz, Elisabeth"]
[Black "Calzetta Ruiz, Monica"]
[Result "1-0"]
[ECO "D02"]
[WhiteElo "2457"]
[BlackElo "2244"]
[Annotator "RC"]
[PlyCount "69"]
[EventDate "2024.05.18"]
[EventType "tourn"]
[EventCountry "ESP"]
[SourceTitle "playchess.com"]
[Source "ChessBase"]
[SourceQuality "1"]
[TimeControl "2400+5"]

1. d4 {[%emt 0:00:02]} d5 {[%emt 0:00:03]} 2. Bf4 {[%emt 0:00:03]} e6 {[%emt 0:00:03]} 3. e3 {[%emt 0:00:02]} Bd6 {[%emt 0:00:02]} 4. Bg3 {[%emt 0:00:01]} Nf6 {[%emt 0:00:03]} 5. Nd2 {[%emt 0:00:06]} O-O {[%emt 0:00:08]} 6. Ngf3 {[%emt 0:00:03]} c5 {[%emt 0:00:04]} 7. c3 {[%emt 0:00:11]} Qc7 {[%emt 0:00:31]} 8. Ne5 {[%emt 0:00:02]} b6 {[%emt 0:03:23]} 9. f4 {[%emt 0:00:28]} Ba6 {[%emt 0:00:27]} 10. Bxa6 {[%emt 0:00:04]} Nxa6 {[%emt 0:00:02]} 11. O-O {[%emt 0:00:27]} Nb8 {[%emt 0:04:38]} 12. Qf3 {[%emt 0:00:46]} Nbd7 {[%emt 0:00:11]} 13. Bh4 {[%emt 0:00:07]} b5 {[%emt 0:00:37]} 14. Rac1 {[%emt 0:00:56]} a5 {[%emt 0:00:26]} 15. Kh1 {[%emt 0:00:35]} Qb7 {[%emt 0:01:12]} 16. Nxd7 {[%emt 0:02:50]} Nxd7 {[%emt 0:00:04]} 17. f5 {[%emt 0:00:01]} exf5 {[%emt 0:06:55]} 18. Qxf5 {[%emt 0:00:02]} Rae8 {[%emt 0:00:01]} 19. Rce1 {[%emt 0:00:07]} cxd4 {[%emt 0:03:42]} 20. exd4 {[%emt 0:00:01]} Rxe1 {[%emt 0:00:02]} 21. Rxe1 {[%emt 0:00:01]} b4 {[%emt 0:00:01]} 22. c4 {[%emt 0:00:23]} dxc4 {[%emt 0:00:46]} 23. Nxc4 {[%emt 0:00:06]} Qc7 {[%emt 0:02:00]} 24. b3 {[%emt 0:02:01]} a4 {[%emt 0:00:20]} 25. h3 {[%emt 0:04:28]} axb3 {[%emt 0:00:15]} 26. axb3 {[%emt 0:00:01]} g6 {[%emt 0:08:50]} 27. Qf3 {[%emt 0:00:55]} Bf4 {[%emt 0:05:05]} 28. Rf1 {[%emt 0:03:14]} g5 {[%emt 0:00:58]} 29. Be1 {[%emt 0:00:03]} Qb8 {[%emt 0:01:33]} 30. g3 {[%emt 0:02:28]} Bc7 {[%emt 0:00:01]} 31. Qf5 {[%emt 0:00:11]} Nb6 {[%emt 0:00:09]} 32. Qxg5+ {[%emt 0:00:06]} Kh8 {[%emt 0:00:01]} 33. Qf6+ {[%emt 0:00:05]} Kg8 {[%emt 0:00:01]} 34. Rf5 {[%emt 0:00:14]} h6 {[%emt 0:00:12]} 35. Qxh6 {[%emt 0:00:05]} 1-0

[Event "7th Salamanca Festival 2024"]
[Site "Salamanca"]
[Date "2024.05.25"]
[Round "7.2"]
[White "Muzychuk, Mariya"]
[Black "Ponomariov, Ruslan"]
[Result "0-1"]
[ECO "C47"]
[WhiteElo "2510"]
[BlackElo "2646"]
[Annotator "TA"]
[PlyCount "90"]
[EventDate "2024.05.18"]
[EventType "tourn"]
[EventCountry "ESP"]
[SourceTitle "playchess.com"]
[Source "ChessBase"]
[SourceQuality "1"]
[TimeControl "2400+5"]

{[%evp 32,90,48,36,98,0,66,38,25,49,53,43,51,50,59,60,52,0,74,-95,0,0,0,-37,-18,-98,-35,-32,-38,-111,-111,-306,-325,-299,-14,-317,-318,-312,-313,-295,-264,-318,-275,-281,-255,-241,-257,-238,-40,-353,-348,-276,-264,-562,-435,-439,-419,-415,-416,-992,-985]} 1. e4 {[%emt 0:00:02]} e5 {[%emt 0:00:02]} 2. Nf3 {[%emt 0:00:03]} Nc6 {[%emt 0:00:03]} 3. Nc3 {[%emt 0:00:13]} Nf6 {[%emt 0:01:44]} 4. d4 {[%emt 0:00:01]} Bb4 {[%emt 0:00:58]} 5. Nxe5 {[%emt 0:00:11]} Qe7 {[%emt 0:00:08]} 6. Qd3 {[%emt 0:00:02]} Nxd4 {[%emt 0:04:55] C47: Scotch Four Knights and Four Knights with 4 g3.} 7. Qxd4 {[%emt 0:00:57]} Bc5 {[%emt 0:00:08]} 8. Qd3 {[%emt 0:01:04]} Qxe5 {[%emt 0:00:02]} 9. Be3 {[%emt 0:00:49]} Bxe3 {[%emt 0:01:05]} 10. Qxe3 {[%emt 0:00:01]} d6 {[%emt 0:00:14]} 11. O-O-O {[%emt 0:03:35]} O-O {[%emt 0:01:21]} 12. f3 {[%emt 0:00:48]} Be6 {[%emt 0:01:47]} 13. Kb1 $146 {[%emt 0:00:19]} ({Predecessor:} 13. g4 c6 14. f4 Qa5 15. g5 Ne8 16. Kb1 g6 17. h4 b5 18. b3 b4 19. Na4 {1-0 Frostick,C (2108)-Clarke,C (1691) 4NCL Online op 1st 2020 (3.18)}) 13... Qa5 {[%emt 0:01:54]} 14. g4 {[%emt 0:00:29]} b5 {[%emt 0:02:40]} 15. b3 {[%emt 0:00:50]} b4 {[%emt 0:01:40]} 16. Ne2 {[%emt 0:00:28]} Nd7 {[%emt 0:04:24]} 17. Nd4 {[%emt 0:00:41]} Qb6 {[%emt 0:01:02]} (17... Qc5 $14) 18. Be2 {[%emt 0:04:54]} (18. h4 $1 $16) 18... Nc5 {[%emt 0:01:24]} (18... a5 $11) 19. Rhg1 {[%emt 0:04:31]} Kh8 {[%emt 0:05:47]} 20. h4 {[%emt 0:02:32]} a5 {[%emt 0:00:37]} 21. h5 {[%emt 0:00:04]} a4 {[%emt 0:00:16]} 22. h6 {[%emt 0:00:07]} g6 {[%emt 0:00:48]} 23. Qd2 {[%emt 0:02:38]} Ra5 {[%emt 0:01:01]} 24. g5 {[%emt 0:00:21]} (24. Rg2 $1 $14) 24... f6 {[%emt 0:00:49]} (24... axb3 $11 25. cxb3 Rfa8) 25. gxf6 $2 {[%emt 0:01:14]} (25. Nxe6 $1 $16 {stays on course.} Nxe6 26. gxf6 axb3 27. cxb3 (27. axb3 Rfa8) 27... Rxf6 28. Bc4) 25... Bf7 {[%emt 0:00:02]} (25... axb3 $1 $17 26. cxb3 (26. axb3 Rfa8) 26... Bf7 (26... Rxf6 $2 27. Qb2 $18)) 26. Bc4 $1 $11 {[%emt 0:01:25]} axb3 $1 {[%emt 0:00:07]} 27. Bxb3 {[%emt 0:04:56]} Nxb3 {[%emt 0:00:32]} 28. Nxb3 {[%emt 0:01:56]} (28. axb3 $2 Rfa8 29. c3 Ra1+ 30. Kc2 R1a2+ 31. Kd3 Rxd2+ $19) (28. cxb3 $11 Rfa8 29. Rg2) 28... Ra7 {[%emt 0:02:27]} (28... Ra6 $17 {aiming for ...Rfa8.} 29. Rge1 Qb5) 29. Qd4 $15 {[%emt 0:00:56]} Qa6 {[%emt 0:00:07]} 30. Qb2 {[%emt 0:00:08]} ({White should play} 30. Kc1 $15) 30... Rfa8 $17 {[%emt 0:00:13]} 31. Rge1 $2 {[%emt 0:02:36]} (31. Rg2 $17) 31... Qc6 $1 $19 {[%emt 0:00:30]} 32. Rd2 {[%emt 0:01:53]} Qc3 $2 {[%emt 0:01:56]} (32... Rxa2 $19 33. Qxa2 (33. Qd4 $2 Qc3 $19) 33... Rxa2 34. Kxa2 Qc3) 33. Red1 $2 {[%emt 0:00:06][%mdl 8192] [#]} (33. Qxc3 $11 {and White stays safe.} bxc3 34. Rd4) 33... Rxa2 $1 $19 {[%emt 0:00:29]} (33... Qxf3 34. e5 Rxa2 35. Qxa2 Rxa2 (35... dxe5 36. Qxa8+ Qxa8 37. Rd8+ Bg8 38. Rxa8 e4 39. f7 g5 40. fxg8=Q#) 36. Kxa2 $17) 34. Qxa2 {[%emt 0:00:01]} (34. Qxc3 $2 bxc3 35. Rd3 Bxb3 36. Rxc3 Ra1+ 37. Kb2 Rxd1 $19) 34... Rxa2 {[%emt 0:00:01]} 35. Kxa2 {[%emt 0:00:01]} Qxf6 {[%emt 0:00:47]} (35... Qxf3 36. e5 $17) 36. Rd3 {[%emt 0:00:14]} Kg8 {[%emt 0:00:11]} 37. Kb1 {[%emt 0:00:08]} Qf4 {[%emt 0:00:09]} 38. Na5 {[%emt 0:00:42]} Qxh6 {[%emt 0:00:12]} 39. e5 {[%emt 0:00:22]} dxe5 $2 {[%emt 0:00:08]} ({Black should try} 39... d5 $19 {...c5 would now be deadly.} 40. Nc6 Qf8) 40. Rd8+ $2 {[%emt 0:00:04][%mdl 8192]} (40. Rd7 $15) 40... Kg7 $19 {[%emt 0:00:02]} 41. R8d7 {[%emt 0:00:14] [#]} Qf4 $1 {[%emt 0:00:14]} 42. Nc6 $2 {[%emt 0:00:20]} (42. Rxc7 Kh6 (42... Qxf3 43. Rdd7 $11) 43. Rh1+ Kg5 (43... Kg7 $2 44. Rd1 $19) 44. Rxh7) 42... Kh6 {[%emt 0:00:12]} (42... Qxf3 $2 {is the wrong capture.} 43. Nxe5 $18 (43. Nxb4 $2 h5 $19) (43. Nxb4 $2 h5 $19)) 43. Nxe5 {[%emt 0:00:24]} Be6 {[%emt 0:00:12]} 44. Ng4+ {[%emt 0:00:14]} Kg5 $1 {[%emt 0:00:10]} ({Weaker is} 44... Bxg4 45. fxg4 c6 (45... Qxg4 46. Rh1+ Kg5 47. Rhxh7 $17) 46. Rh1+ Kg5 47. Rhxh7 $17) 45. Rxh7 {[%emt 0:00:04]} (45. R7d3 $142) 45... Qxf3 {[%emt 0:00:02]} 0-1

[Event "7th Salamanca Festival 2024"]
[Site "Salamanca"]
[Date "2024.05.25"]
[Round "7.3"]
[White "Iturrizaga Bonelli, Eduardo"]
[Black "Salimova, Nurgyul"]
[Result "1-0"]
[ECO "A20"]
[WhiteElo "2591"]
[BlackElo "2436"]
[Annotator "TA"]
[PlyCount "63"]
[EventDate "2024.05.18"]
[EventType "tourn"]
[EventCountry "ESP"]
[SourceTitle "playchess.com"]
[Source "ChessBase"]
[SourceQuality "1"]
[TimeControl "2400+5"]

{[%evp 9,63,25,30,18,27,25,33,0,39,15,3,20,55,35,88,78,104,92,106,75,149,127,147,117,136,118,120,125,119,101,92,97,185,177,291,289,277,299,299,299,598,592,857,840,829,815,980,947,932,910,29988,831,29988,29989,29989,29990]} 1. c4 {[%emt 0:00:04]} e5 {[%emt 0:00:01]} 2. g3 {[%emt 0:00:03]} d5 {[%emt 0:00:17]} 3. cxd5 {[%emt 0:00:10]} Qxd5 {[%emt 0:00:03]} 4. Nf3 {[%emt 0:00:02]} Nc6 {[%emt 0:00:35]} 5. Nc3 {[%emt 0:00:05]} Qd6 {[%emt 0:00:19]} 6. Bg2 {[%emt 0:00:05]} Nf6 {[%emt 0:00:53]} 7. O-O {[%emt 0:00:13]} Be7 {[%emt 0:00:16]} 8. b3 {[%emt 0:00:30] White is slightly better.} Nd4 {[%emt 0:04:03]} 9. Ne1 {[%emt 0:06:15]} (9. Bb2 $5) 9... c6 {[%emt 0:02:13]} 10. e3 {[%emt 0:00:29]} Nf5 {[%emt 0:01:06]} 11. Nf3 {[%emt 0:01:01]} h6 {[%emt 0:02:05]} (11... h5 $14) 12. Qc2 {[%emt 0:01:04]} Qc5 {[%emt 0:07:16]} 13. Bb2 {[%emt 0:02:11][%cal Ob3b4]} Be6 {[%emt 0:02:13]} 14. Rac1 {[%emt 0:02:07]} Nd7 {[%emt 0:04:22]} (14... O-O $142) 15. Rfd1 {[%emt 0:10:00]} Qa5 {[%emt 0:02:04] [#]} 16. a3 $1 {[%emt 0:00:56][%mdl 512]} O-O {[%emt 0:00:53][%cal Oa5b6]} 17. b4 {[%emt 0:00:03]} Qd8 {[%emt 0:01:58]} 18. Ne2 {[%emt 0:06:38]} a5 {[%emt 0:01:27]} 19. d4 {[%emt 0:00:34][%cal Bd2d4,Bd4e5,Be5e6][%mdl 32]} ({Don't do} 19. Bxe5 Nxe5 20. Nxe5 axb4 $14) 19... axb4 {[%emt 0:01:19]} 20. axb4 {[%emt 0:00:27]} ({Stronger than} 20. Nxe5 bxa3 21. Ba1 Bg5 22. Nxd7 Bxd7 $17 (22... Qxd7 23. Qc3 $15)) 20... Bxb4 {[%emt 0:00:58]} (20... e4 $16) 21. dxe5 $18 {[%emt 0:00:04]} Qb6 {[%emt 0:02:56]} (21... Qe8 $142 22. Nf4 Nc5) 22. Nf4 {[%emt 0:00:10] Nxe6 is the strong threat.} Rfd8 {[%emt 0:02:36]} 23. Nxe6 {[%emt 0:01:06]} fxe6 {[%emt 0:00:01]} 24. Bh3 {[%emt 0:00:03] This pair of bishops is nice.} Kh8 $2 {[%emt 0:02:00]} (24... Nf8 25. Bxf5 exf5) 25. Bxf5 {[%emt 0:00:21]} exf5 {[%emt 0:00:01]} 26. e6 {[%emt 0:00:46]} Nf8 {[%emt 0:00:06]} 27. Qxf5 {[%emt 0:00:02]} Rxd1+ {[%emt 0:00:06]} 28. Rxd1 {[%emt 0:00:01] White threatens Qf7 and mate.} Qc5 {[%emt 0:00:07]} 29. Ne5 {[%emt 0:00:30][%cal Bf3e5,Be5f7,Bf7h6][%mdl 32] Nf7+ would kill now.} Re8 {[%emt 0:00:03]} 30. Nf7+ {[%emt 0:01:20]} Kg8 {[%emt 0:00:02] [#]} 31. Nxh6+ $1 {[%emt 0:00:01][%mdl 512]} Kh8 {[%emt 0:00:01]} 32. Qf7 {[%emt 0:00:01][%csl LRb7,LRe8,LRg7] Weighted Error Value: White=0.13 (very precise) /Black=0.69.  Mistake:       	---       	Black=5      Inaccurate:     	White=1     	Black=4      OK:         	White=4     	Black=5      Best:        	White=5     	---} 1-0